[Event "*** Titled Tuesday Blitz"]
[Site "Chess.com"]
[Date "2020.04.21"]
[Round "5"]
[White "penguingm1"]
[Black "Mischuk_D"]
[Result "0-1"]
[WhiteElo "2843"]
[BlackElo "2701"]
[TimeControl "180+1"]
[EndTime "10:58:49 PDT"]
[Termination "Mischuk_D won on time"]

1. d4 {[%clk 0:03:00.9]} 1... d5 {[%clk 0:02:59.7]} 2. Bf4 {[%clk 0:03:00.2]}
2... c6 {[%clk 0:02:56.7]} 3. e3 {[%clk 0:02:58.9]} 3... Bf5 {[%clk 0:02:56.3]}
4. c4 {[%clk 0:02:59.2]} 4... Bxb1 {[%clk 0:02:52.5]} 5. Qxb1 {[%clk 0:02:23.3]}
5... e6 {[%clk 0:02:51.4]} 6. a3 {[%clk 0:02:21.7]} 6... Bd6 {[%clk 0:02:50.8]}
7. Bg3 {[%clk 0:02:21.5]} 7... Nf6 {[%clk 0:02:50.1]} 8. Qc2 {[%clk 0:02:16.4]}
8... O-O {[%clk 0:02:48.8]} 9. Nf3 {[%clk 0:02:16.1]} 9... Qe7 {[%clk 0:02:48]}
10. Bd3 {[%clk 0:02:10.7]} 10... Nbd7 {[%clk 0:02:41.8]} 11. Rd1 {[%clk
0:01:59.9]} 11... g6 {[%clk 0:02:37.9]} 12. Ne5 {[%clk 0:01:55.8]} 12... Nh5
{[%clk 0:02:29.2]} 13. Nxd7 {[%clk 0:00:45.3]} 13... Qxd7 {[%clk 0:02:25.3]} 14.
Bh4 {[%clk 0:00:45]} 14... Be7 {[%clk 0:02:23.9]} 15. Bxe7 {[%clk 0:00:41.9]}
15... Qxe7 {[%clk 0:02:23.6]} 16. O-O {[%clk 0:00:40.4]} 16... Rad8 {[%clk
0:02:22.2]} 17. b4 {[%clk 0:00:40.4]} 17... a6 {[%clk 0:02:20.5]} 18. c5 {[%clk
0:00:36.3]} 18... e5 {[%clk 0:02:19.5]} 19. a4 {[%clk 0:00:28.5]} 19... exd4
{[%clk 0:02:17.3]} 20. exd4 {[%clk 0:00:29.4]} 20... Nf4 {[%clk 0:02:09.9]} 21.
Rfe1 {[%clk 0:00:26.6]} 21... Qf6 {[%clk 0:02:09.7]} 22. Bf1 {[%clk 0:00:25.8]}
22... Rfe8 {[%clk 0:02:08.4]} 23. Re3 {[%clk 0:00:25]} 23... Rxe3 {[%clk
0:02:05.6]} 24. fxe3 {[%clk 0:00:25.9]} 24... Ne6 {[%clk 0:02:06.3]} 25. Qf2
{[%clk 0:00:25.1]} 25... Qe7 {[%clk 0:01:58.9]} 26. Bd3 {[%clk 0:00:19.1]} 26...
Ng5 {[%clk 0:01:58.8]} 27. Qf4 {[%clk 0:00:19.2]} 27... Re8 {[%clk 0:01:57.9]}
28. h4 {[%clk 0:00:17.2]} 28... Ne6 {[%clk 0:01:55.7]} 29. Qg3 {[%clk
0:00:17.5]} 29... Ng7 {[%clk 0:01:55.8]} 30. Re1 {[%clk 0:00:17.6]} 30... Nh5
{[%clk 0:01:52.2]} 31. Qf2 {[%clk 0:00:17.6]} 31... Nf6 {[%clk 0:01:50]} 32. Qf3
{[%clk 0:00:18]} 32... h5 {[%clk 0:01:48.6]} 33. Qg3 {[%clk 0:00:16.3]} 33...
Kg7 {[%clk 0:01:46.1]} 34. b5 {[%clk 0:00:15.2]} 34... axb5 {[%clk 0:01:45.4]}
35. axb5 {[%clk 0:00:16.1]} 35... Ra8 {[%clk 0:01:45.4]} 36. bxc6 {[%clk
0:00:15.5]} 36... bxc6 {[%clk 0:01:46.3]} 37. Qf4 {[%clk 0:00:13.6]} 37... Ng4
{[%clk 0:01:42.4]} 38. e4 {[%clk 0:00:07.6]} 38... Qxh4 {[%clk 0:01:41.8]} 39.
Rf1 {[%clk 0:00:08.2]} 39... Qf6 {[%clk 0:01:33.4]} 40. exd5 {[%clk 0:00:06.2]}
40... Qxf4 {[%clk 0:01:23.7]} 41. Rxf4 {[%clk 0:00:06.3]} 41... cxd5 {[%clk
0:01:24.6]} 42. Rf1 {[%clk 0:00:06.2]} 42... Ra3 {[%clk 0:01:18.3]} 43. Rc1
{[%clk 0:00:06]} 43... Ra7 {[%clk 0:00:56.3]} 44. Be2 {[%clk 0:00:05.9]} 44...
Ne3 {[%clk 0:00:54.1]} 45. Bf3 {[%clk 0:00:05.3]} 45... Nf5 {[%clk 0:00:54.2]}
46. Rd1 {[%clk 0:00:05.6]} 46... Ra4 {[%clk 0:00:50.6]} 47. c6 {[%clk
0:00:04.5]} 47... Nxd4 {[%clk 0:00:46.2]} 48. Bxd5 {[%clk 0:00:04.9]} 48... Nb5
{[%clk 0:00:43.4]} 49. Rf1 {[%clk 0:00:05.4]} 49... f5 {[%clk 0:00:41]} 50. Rb1
{[%clk 0:00:05.9]} 50... Ra5 {[%clk 0:00:33.6]} 51. Bc4 {[%clk 0:00:02.9]} 51...
Nd6 {[%clk 0:00:33]} 52. Be2 {[%clk 0:00:01.3]} 52... Rc5 {[%clk 0:00:32.7]} 53.
Bf3 {[%clk 0:00:02]} 53... Kf6 {[%clk 0:00:32]} 54. Rb6 {[%clk 0:00:02.1]} 54...
Ke5 {[%clk 0:00:31.4]} 55. Ra6 {[%clk 0:00:02.4]} 55... h4 {[%clk 0:00:29.5]}
56. Ra2 {[%clk 0:00:02.8]} 56... g5 {[%clk 0:00:29.4]} 57. Re2+ {[%clk
0:00:03.5]} 57... Ne4 {[%clk 0:00:29.5]} 58. Ra2 {[%clk 0:00:01.9]} 58... Rxc6
{[%clk 0:00:28.1]} 59. Kh2 {[%clk 0:00:02.8]} 59... g4 {[%clk 0:00:24.2]} 60.
Be2 {[%clk 0:00:03]} 60... Rc1 {[%clk 0:00:23]} 61. Ra5+ {[%clk 0:00:02.4]}
61... Kf4 {[%clk 0:00:22.9]} 62. g3+ {[%clk 0:00:02.7]} 62... Nxg3 {[%clk
0:00:19.8]} 63. Bf3 {[%clk 0:00:01.1]} 63... gxf3 {[%clk 0:00:17.7]} 64. Ra4+
{[%clk 0:00:01.7]} 64... Kg5 {[%clk 0:00:17.8]} 65. Rg4+ {[%clk 0:00:02.3]}
65... Kf6 {[%clk 0:00:16.2]} 66. Rxh4 {[%clk 0:00:02.4]} 66... Rh1+ {[%clk
0:00:14.3]} 0-1

[Event "*** Titled Tuesday Blitz"]
[Site "Chess.com"]
[Date "2020.04.21"]
[Round "5"]
[White "RichardWe"]
[Black "mshuaau0"]
[Result "0-1"]
[WhiteElo "2398"]
[BlackElo "2119"]
[TimeControl "180+1"]
[EndTime "10:59:02 PDT"]
[Termination "mshuaau0 won on time"]

1. d4 {[%clk 0:03:00.8]} 1... d5 {[%clk 0:02:59.2]} 2. c4 {[%clk 0:03:00.7]}
2... e6 {[%clk 0:02:57.6]} 3. Nc3 {[%clk 0:03:00.6]} 3... Nf6 {[%clk 0:02:56.4]}
4. Bg5 {[%clk 0:03:00.5]} 4... Be7 {[%clk 0:02:55.8]} 5. e3 {[%clk 0:02:59]}
5... Nbd7 {[%clk 0:02:54.9]} 6. Nf3 {[%clk 0:02:58.9]} 6... h6 {[%clk
0:02:54.1]} 7. Bh4 {[%clk 0:02:58.8]} 7... O-O {[%clk 0:02:51.5]} 8. Rc1 {[%clk
0:02:57]} 8... c5 {[%clk 0:02:47.9]} 9. cxd5 {[%clk 0:02:54.4]} 9... Nxd5 {[%clk
0:02:43]} 10. Bxe7 {[%clk 0:02:48.6]} 10... Qxe7 {[%clk 0:02:43.9]} 11. Nxd5
{[%clk 0:02:47.1]} 11... exd5 {[%clk 0:02:43.5]} 12. dxc5 {[%clk 0:02:35.6]}
12... Nxc5 {[%clk 0:02:43.3]} 13. Qxd5 {[%clk 0:02:32.7]} 13... Ne4 {[%clk
0:02:41.8]} 14. a3 {[%clk 0:02:16.2]} 14... Rd8 {[%clk 0:02:38.5]} 15. Qe5
{[%clk 0:02:12.9]} 15... Qxe5 {[%clk 0:02:30]} 16. Nxe5 {[%clk 0:02:12.9]} 16...
Be6 {[%clk 0:02:29.5]} 17. Be2 {[%clk 0:01:50.9]} 17... Nd2 {[%clk 0:02:05]} 18.
f3 {[%clk 0:01:34.1]} 18... Nb3 {[%clk 0:01:59.2]} 19. Rd1 {[%clk 0:01:29.4]}
19... Rdc8 {[%clk 0:01:50]} 20. Bd3 {[%clk 0:01:25]} 20... f6 {[%clk 0:01:46.7]}
21. Ng6 {[%clk 0:01:23.3]} 21... Kf7 {[%clk 0:01:44.2]} 22. Nf4 {[%clk
0:01:23.1]} 22... Rc7 {[%clk 0:01:19.2]} 23. O-O {[%clk 0:01:17.7]} 23... g5
{[%clk 0:01:11.5]} 24. Nxe6 {[%clk 0:01:16.7]} 24... Kxe6 {[%clk 0:01:11.6]} 25.
Be4 {[%clk 0:01:14.9]} 25... Nc5 {[%clk 0:01:09.1]} 26. Bd5+ {[%clk 0:01:13.9]}
26... Ke7 {[%clk 0:01:08.5]} 27. e4 {[%clk 0:01:09.4]} 27... Ne6 {[%clk
0:01:05]} 28. Bxe6 {[%clk 0:00:57.5]} 28... Kxe6 {[%clk 0:01:05.9]} 29. Rf2
{[%clk 0:00:57.7]} 29... Rac8 {[%clk 0:01:02.8]} 30. Rfd2 {[%clk 0:00:57.8]}
30... Rc2 {[%clk 0:01:02.5]} 31. Kf2 {[%clk 0:00:58.3]} 31... Rxd2+ {[%clk
0:01:01.1]} 32. Rxd2 {[%clk 0:00:58.4]} 32... Rc7 {[%clk 0:01:01]} 33. Ke3
{[%clk 0:00:57.7]} 33... Ke5 {[%clk 0:01:01.4]} 34. g3 {[%clk 0:00:56.9]} 34...
h5 {[%clk 0:01:01.1]} 35. f4+ {[%clk 0:00:57.2]} 35... gxf4+ {[%clk 0:01:00.2]}
36. gxf4+ {[%clk 0:00:57.6]} 36... Ke6 {[%clk 0:01:00.7]} 37. f5+ {[%clk
0:00:54.7]} 37... Ke7 {[%clk 0:01:00.5]} 38. Kf4 {[%clk 0:00:49.8]} 38... Rc4
{[%clk 0:00:54.7]} 39. Rg2 {[%clk 0:00:48.6]} 39... Kf7 {[%clk 0:00:45.9]} 40.
h4 {[%clk 0:00:46.9]} 40... b5 {[%clk 0:00:42.7]} 41. Rg6 {[%clk 0:00:42.4]}
41... Rc2 {[%clk 0:00:41]} 42. Rh6 {[%clk 0:00:42.6]} 42... Rf2+ {[%clk
0:00:38.7]} 43. Ke3 {[%clk 0:00:41]} 43... Rxb2 {[%clk 0:00:37.1]} 44. Rh7+
{[%clk 0:00:34.5]} 44... Kg8 {[%clk 0:00:37.4]} 45. Rxa7 {[%clk 0:00:34.5]}
45... Rh2 {[%clk 0:00:36.4]} 46. Ra5 {[%clk 0:00:26.1]} 46... Rxh4 {[%clk
0:00:35.7]} 47. Kd4 {[%clk 0:00:23.4]} 47... Rh3 {[%clk 0:00:35.2]} 48. Kd5
{[%clk 0:00:22.2]} 48... Kg7 {[%clk 0:00:35.1]} 49. Rxb5 {[%clk 0:00:21.3]}
49... Rxa3 {[%clk 0:00:34.5]} 50. Rb7+ {[%clk 0:00:20.4]} 50... Kh6 {[%clk
0:00:34.5]} 51. Rb6 {[%clk 0:00:17.4]} 51... Kg5 {[%clk 0:00:33.8]} 52. Rb8
{[%clk 0:00:10.1]} 52... Ra5+ {[%clk 0:00:33.5]} 53. Ke6 {[%clk 0:00:10.3]}
53... Re5+ {[%clk 0:00:33.4]} 54. Kf7 {[%clk 0:00:09.8]} 54... Rxe4 {[%clk
0:00:33.7]} 55. Rh8 {[%clk 0:00:09.9]} 55... Rh4 {[%clk 0:00:32.9]} 56. Ke6
{[%clk 0:00:08.2]} 56... Re4+ {[%clk 0:00:33]} 57. Kf7 {[%clk 0:00:08.6]} 57...
h4 {[%clk 0:00:33.3]} 58. Rg8+ {[%clk 0:00:07.7]} 58... Kxf5 {[%clk 0:00:33.5]}
59. Rh8 {[%clk 0:00:06.8]} 59... Rg4 {[%clk 0:00:29.9]} 60. Rh5+ {[%clk
0:00:05.7]} 60... Kf4 {[%clk 0:00:26.8]} 61. Kxf6 {[%clk 0:00:06.2]} 61... Kg3
{[%clk 0:00:27.1]} 62. Kf5 {[%clk 0:00:06.6]} 62... h3 {[%clk 0:00:25.9]} 63.
Rh8 {[%clk 0:00:04]} 63... Rg7 {[%clk 0:00:22.6]} 64. Kf6 {[%clk 0:00:02.5]}
64... Rg4 {[%clk 0:00:22.1]} 65. Kf5 {[%clk 0:00:02.8]} 65... Rg7 {[%clk
0:00:22.1]} 66. Kf6 {[%clk 0:00:02.4]} 66... Ra7 {[%clk 0:00:22.4]} 67. Kf5
{[%clk 0:00:02]} 67... Ra5+ {[%clk 0:00:21.3]} 68. Ke4 {[%clk 0:00:02.2]} 68...
h2 {[%clk 0:00:21.2]} 69. Rg8+ {[%clk 0:00:01.9]} 69... Kf2 {[%clk 0:00:21.4]}
70. Rf8+ {[%clk 0:00:02.5]} 70... Kg2 {[%clk 0:00:21.4]} 71. Rg8+ {[%clk
0:00:02.9]} 71... Kh1 {[%clk 0:00:21.6]} 72. Kf3 {[%clk 0:00:03.1]} 72... Ra2
{[%clk 0:00:21.1]} 73. Rg7 {[%clk 0:00:03.3]} 73... Rb2 {[%clk 0:00:21.1]} 74.
Rg8 {[%clk 0:00:03.6]} 74... Rb3+ {[%clk 0:00:21.2]} 75. Kf2 {[%clk 0:00:03.8]}
75... Rb2+ {[%clk 0:00:21.4]} 76. Kf1 {[%clk 0:00:04.3]} 76... Rb1+ {[%clk
0:00:21.7]} 77. Kf2 {[%clk 0:00:04.8]} 77... Rg1 {[%clk 0:00:21.8]} 78. Rh8
{[%clk 0:00:03.8]} 78... Rg7 {[%clk 0:00:21.3]} 79. Rh6 {[%clk 0:00:03.7]} 79...
Rf7+ {[%clk 0:00:21.4]} 80. Kg3 {[%clk 0:00:03.7]} 80... Kg1 {[%clk 0:00:21.4]}
0-1

[Event "*** Titled Tuesday Blitz"]
[Site "Chess.com"]
[Date "2020.04.21"]
[Round "5"]
[White "HaryKane"]
[Black "Sethu0025"]
[Result "0-1"]
[WhiteElo "2675"]
[BlackElo "2825"]
[TimeControl "180+1"]
[EndTime "10:59:20 PDT"]
[Termination "Sethu0025 won by resignation"]

1. e4 {[%clk 0:03:00.9]} 1... c5 {[%clk 0:02:59.7]} 2. Nf3 {[%clk 0:03:00.8]}
2... d6 {[%clk 0:03:00]} 3. d4 {[%clk 0:03:01.3]} 3... cxd4 {[%clk 0:03:00.9]}
4. Nxd4 {[%clk 0:03:02.2]} 4... Nf6 {[%clk 0:03:01.5]} 5. Nc3 {[%clk 0:03:02.7]}
5... a6 {[%clk 0:03:02.3]} 6. Bc4 {[%clk 0:03:03.2]} 6... e6 {[%clk 0:03:01.2]}
7. Bb3 {[%clk 0:03:03.3]} 7... Nbd7 {[%clk 0:02:59.2]} 8. f3 {[%clk 0:03:01.5]}
8... Nc5 {[%clk 0:02:42]} 9. Be3 {[%clk 0:03:01]} 9... b5 {[%clk 0:02:35.4]} 10.
Qd2 {[%clk 0:02:59.3]} 10... Bd7 {[%clk 0:02:29.3]} 11. a4 {[%clk 0:02:53.2]}
11... b4 {[%clk 0:02:27.4]} 12. Nd1 {[%clk 0:02:44.7]} 12... a5 {[%clk
0:02:23.3]} 13. O-O {[%clk 0:02:43.8]} 13... Be7 {[%clk 0:02:22]} 14. Nf2 {[%clk
0:02:37.6]} 14... O-O {[%clk 0:02:21.2]} 15. Nd3 {[%clk 0:02:32.3]} 15... Qb8
{[%clk 0:02:05.5]} 16. Rfd1 {[%clk 0:02:22.4]} 16... Rd8 {[%clk 0:02:04.6]} 17.
Qf2 {[%clk 0:02:13.5]} 17... Nxb3 {[%clk 0:01:57.5]} 18. Nxb3 {[%clk 0:02:12.3]}
18... Rc8 {[%clk 0:01:52.8]} 19. Rd2 {[%clk 0:02:00.4]} 19... Bd8 {[%clk
0:01:50.1]} 20. Kh1 {[%clk 0:01:47.4]} 20... e5 {[%clk 0:01:47.5]} 21. Bg5
{[%clk 0:01:44.3]} 21... h6 {[%clk 0:01:46.1]} 22. Bh4 {[%clk 0:01:40.1]} 22...
Ra6 {[%clk 0:01:41]} 23. Nxe5 {[%clk 0:01:34.4]} 23... Be6 {[%clk 0:01:05.4]}
24. Nd3 {[%clk 0:01:21.4]} 24... Qa8 {[%clk 0:00:48.5]} 25. Nd4 {[%clk 0:01:16]}
25... Bd7 {[%clk 0:00:43.2]} 26. b3 {[%clk 0:01:12.3]} 26... Qa7 {[%clk
0:00:42.7]} 27. Nf5 {[%clk 0:01:00.1]} 27... Qxf2 {[%clk 0:00:39.1]} 28. Bxf2
{[%clk 0:00:59.7]} 28... Bxf5 {[%clk 0:00:35.1]} 29. exf5 {[%clk 0:01:00.6]}
29... Nd5 {[%clk 0:00:34]} 30. Nc5 {[%clk 0:00:51.8]} 30... dxc5 {[%clk
0:00:33.6]} 31. Rxd5 {[%clk 0:00:51.8]} 31... Bf6 {[%clk 0:00:33.1]} 32. Rad1
{[%clk 0:00:48.6]} 32... c4 {[%clk 0:00:33.2]} 33. h3 {[%clk 0:00:40.1]} 33...
cxb3 {[%clk 0:00:32.9]} 34. cxb3 {[%clk 0:00:41]} 34... Rc3 {[%clk 0:00:31.2]}
35. R1d3 {[%clk 0:00:38.9]} 35... Rac6 {[%clk 0:00:28.8]} 36. Kh2 {[%clk
0:00:30.9]} 36... Rxd3 {[%clk 0:00:27.3]} 37. Rxd3 {[%clk 0:00:31.8]} 37... Rc3
{[%clk 0:00:27.5]} 38. Rd5 {[%clk 0:00:21]} 38... Rxb3 {[%clk 0:00:26.3]} 39.
Rxa5 {[%clk 0:00:20.9]} 39... Rb1 {[%clk 0:00:25.3]} 40. Rb5 {[%clk 0:00:17.3]}
40... b3 {[%clk 0:00:25.2]} 41. a5 {[%clk 0:00:15]} 41... b2 {[%clk 0:00:25.2]}
42. a6 {[%clk 0:00:15.3]} 42... Ra1 {[%clk 0:00:25.2]} 43. a7 {[%clk 0:00:15.5]}
43... Be5+ {[%clk 0:00:18.5]} 44. g3 {[%clk 0:00:16]} 44... Kh7 {[%clk
0:00:14.7]} 45. f4 {[%clk 0:00:16.3]} 45... Bc3 {[%clk 0:00:14]} 46. Kg2 {[%clk
0:00:15.7]} 46... Ra2 {[%clk 0:00:11.4]} 47. Kf3 {[%clk 0:00:13.7]} 47... Ra1
{[%clk 0:00:06.8]} 48. Ke4 {[%clk 0:00:12.7]} 48... Be1 {[%clk 0:00:03.9]} 49.
Bc5 {[%clk 0:00:10.2]} 49... Bc3 {[%clk 0:00:02.9]} 50. Kd3 {[%clk 0:00:09.7]}
50... Bf6 {[%clk 0:00:03.1]} 51. Kc2 {[%clk 0:00:06.9]} 51... Rc1+ {[%clk
0:00:03.3]} 52. Kd2 {[%clk 0:00:06.2]} 52... Rxc5 {[%clk 0:00:03.2]} 53. Rxc5
{[%clk 0:00:05.3]} 53... b1=Q {[%clk 0:00:03.4]} 54. a8=Q {[%clk 0:00:05.7]}
54... Qb2+ {[%clk 0:00:03.2]} 55. Rc2 {[%clk 0:00:05.3]} 55... Qd4+ {[%clk
0:00:03.1]} 56. Kc1 {[%clk 0:00:03.2]} 56... Qe3+ {[%clk 0:00:02.9]} 57. Kb1
{[%clk 0:00:03.8]} 57... Qb3+ {[%clk 0:00:02.5]} 58. Kc1 {[%clk 0:00:03.7]}
58... Qxg3 {[%clk 0:00:02.7]} 59. Qg2 {[%clk 0:00:02.3]} 59... Qxf4+ {[%clk
0:00:02.6]} 60. Kd1 {[%clk 0:00:02.7]} 60... Qxf5 {[%clk 0:00:02.6]} 61. Qe2
{[%clk 0:00:03.6]} 61... Qxh3 {[%clk 0:00:02.2]} 62. Rd2 {[%clk 0:00:03.9]}
62... Qf5 {[%clk 0:00:02.2]} 63. Qd3 {[%clk 0:00:03.4]} 63... Qxd3 {[%clk
0:00:02.5]} 64. Rxd3 {[%clk 0:00:04.3]} 64... h5 {[%clk 0:00:03.4]} 65. Ke2
{[%clk 0:00:05.2]} 65... Kh6 {[%clk 0:00:04]} 66. Kf3 {[%clk 0:00:06.1]} 66...
g5 {[%clk 0:00:04.3]} 67. Rd6 {[%clk 0:00:05.9]} 67... Kg6 {[%clk 0:00:05.2]}
68. Ra6 {[%clk 0:00:06.1]} 68... g4+ {[%clk 0:00:05.5]} 69. Kg3 {[%clk 0:00:07]}
69... Kf5 {[%clk 0:00:05.7]} 70. Ra5+ {[%clk 0:00:07.4]} 70... Kg6 {[%clk
0:00:05.7]} 71. Kf4 {[%clk 0:00:07.3]} 71... Bh4 {[%clk 0:00:05.1]} 72. Ra7
{[%clk 0:00:07.5]} 72... f6 {[%clk 0:00:05.7]} 73. Ra6 {[%clk 0:00:08]} 73...
Bg5+ {[%clk 0:00:06.3]} 74. Kg3 {[%clk 0:00:06.7]} 74... Be3 {[%clk 0:00:06.5]}
75. Ra5 {[%clk 0:00:05.1]} 75... Bd4 {[%clk 0:00:06.6]} 76. Rd5 {[%clk
0:00:04.6]} 76... Be5+ {[%clk 0:00:06.3]} 77. Kh4 {[%clk 0:00:04]} 77... g3
{[%clk 0:00:06.4]} 78. Kh3 {[%clk 0:00:03.9]} 78... Kg5 {[%clk 0:00:06.5]} 79.
Rd8 {[%clk 0:00:04.4]} 79... f5 {[%clk 0:00:05.4]} 80. Rg8+ {[%clk 0:00:04.5]}
80... Kf4 {[%clk 0:00:05.6]} 81. Kh4 {[%clk 0:00:04.3]} 81... Kf3 {[%clk
0:00:05.2]} 82. Kxh5 {[%clk 0:00:03.3]} 82... g2 {[%clk 0:00:05.3]} 83. Rg5
{[%clk 0:00:01.7]} 83... f4 {[%clk 0:00:03.2]} 84. Kg6 {[%clk 0:00:01.5]} 84...
Bd4 {[%clk 0:00:03.4]} 85. Kf5 {[%clk 0:00:01.5]} 85... g1=Q {[%clk 0:00:03.7]}
86. Rxg1 {[%clk 0:00:01.3]} 86... Bxg1 {[%clk 0:00:04.6]} 87. Ke5 {[%clk
0:00:01.4]} 87... Be3 {[%clk 0:00:05.5]} 0-1

[Event "*** Titled Tuesday Blitz"]
[Site "Chess.com"]
[Date "2020.04.21"]
[Round "5"]
[White "Zoffy13"]
[Black "masteryoungK"]
[Result "0-1"]
[WhiteElo "2215"]
[BlackElo "2401"]
[TimeControl "180+1"]
[EndTime "10:59:25 PDT"]
[Termination "masteryoungK won on time"]

1. d4 {[%clk 0:03:00.9]} 1... Nf6 {[%clk 0:03:00.1]} 2. Nf3 {[%clk 0:03:01.1]}
2... g6 {[%clk 0:02:59.9]} 3. c4 {[%clk 0:03:01.3]} 3... d5 {[%clk 0:03:00]} 4.
e3 {[%clk 0:02:58.3]} 4... Bg7 {[%clk 0:02:59.5]} 5. Qb3 {[%clk 0:02:58.5]} 5...
c6 {[%clk 0:02:56.7]} 6. Nc3 {[%clk 0:02:41.7]} 6... O-O {[%clk 0:02:55.9]} 7.
Bd2 {[%clk 0:02:40.7]} 7... Ne4 {[%clk 0:02:42.2]} 8. cxd5 {[%clk 0:02:34.3]}
8... Nxc3 {[%clk 0:02:30.7]} 9. bxc3 {[%clk 0:02:30.9]} 9... cxd5 {[%clk
0:02:30.9]} 10. Be2 {[%clk 0:02:24.1]} 10... Nc6 {[%clk 0:02:30.1]} 11. c4
{[%clk 0:02:17.5]} 11... Na5 {[%clk 0:02:27.3]} 12. Qb4 {[%clk 0:01:55]} 12...
Nxc4 {[%clk 0:02:20.9]} 13. Bxc4 {[%clk 0:01:55.9]} 13... dxc4 {[%clk
0:02:21.4]} 14. Qxc4 {[%clk 0:01:55.8]} 14... Bg4 {[%clk 0:02:16.5]} 15. O-O
{[%clk 0:01:50.1]} 15... Bxf3 {[%clk 0:02:15.8]} 16. gxf3 {[%clk 0:01:50]} 16...
Rc8 {[%clk 0:02:14.2]} 17. Qb3 {[%clk 0:01:50.1]} 17... Qd7 {[%clk 0:02:06.6]}
18. Rac1 {[%clk 0:01:47.7]} 18... b6 {[%clk 0:01:59]} 19. Kg2 {[%clk 0:01:44.6]}
19... h5 {[%clk 0:01:44.2]} 20. Bb4 {[%clk 0:01:43.4]} 20... h4 {[%clk
0:01:43.6]} 21. h3 {[%clk 0:01:42.5]} 21... Rfe8 {[%clk 0:01:17.2]} 22. Rfd1
{[%clk 0:01:32.2]} 22... Qf5 {[%clk 0:01:06.8]} 23. Qa3 {[%clk 0:01:06.4]} 23...
Qg5+ {[%clk 0:00:49.5]} 24. Kh2 {[%clk 0:00:56.1]} 24... a5 {[%clk 0:00:49.9]}
25. Bd2 {[%clk 0:00:51.2]} 25... Qd5 {[%clk 0:00:48.2]} 26. Qb3 {[%clk
0:00:48.2]} 26... Qxf3 {[%clk 0:00:47.2]} 27. Be1 {[%clk 0:00:42.5]} 27... Qb7
{[%clk 0:00:29.5]} 28. Rxc8 {[%clk 0:00:36]} 28... Rxc8 {[%clk 0:00:30.4]} 29.
Rb1 {[%clk 0:00:35.9]} 29... Rc6 {[%clk 0:00:25.1]} 30. Bxa5 {[%clk 0:00:35.6]}
30... Rf6 {[%clk 0:00:22]} 31. Be1 {[%clk 0:00:35.4]} 31... Qe4 {[%clk
0:00:20.6]} 32. Rc1 {[%clk 0:00:29.8]} 32... Rf3 {[%clk 0:00:17.9]} 33. Qc4
{[%clk 0:00:25.1]} 33... Qf5 {[%clk 0:00:16.2]} 34. Qc8+ {[%clk 0:00:25.2]}
34... Kh7 {[%clk 0:00:14.7]} 35. Qxf5 {[%clk 0:00:24.1]} 35... Rxf5 {[%clk
0:00:15.6]} 36. Rb1 {[%clk 0:00:23.6]} 36... b5 {[%clk 0:00:15.6]} 37. Kg2
{[%clk 0:00:20.8]} 37... Rd5 {[%clk 0:00:15.9]} 38. f3 {[%clk 0:00:20.7]} 38...
e5 {[%clk 0:00:16.2]} 39. dxe5 {[%clk 0:00:19.4]} 39... Bxe5 {[%clk 0:00:16.9]}
40. Kf2 {[%clk 0:00:19.6]} 40... Bg3+ {[%clk 0:00:15.9]} 41. Ke2 {[%clk
0:00:20.3]} 41... Rc5 {[%clk 0:00:14.4]} 42. Kd3 {[%clk 0:00:18.6]} 42... Rf5
{[%clk 0:00:12.5]} 43. f4 {[%clk 0:00:17.3]} 43... Rd5+ {[%clk 0:00:11.6]} 44.
Ke2 {[%clk 0:00:15.7]} 44... Bxe1 {[%clk 0:00:10.6]} 45. Kxe1 {[%clk 0:00:15.7]}
45... Rd3 {[%clk 0:00:09.4]} 46. Ke2 {[%clk 0:00:16.2]} 46... Ra3 {[%clk
0:00:09.8]} 47. Rb2 {[%clk 0:00:16.3]} 47... f5 {[%clk 0:00:09.7]} 48. Rxb5
{[%clk 0:00:13.5]} 48... Rxa2+ {[%clk 0:00:09.5]} 49. Kd3 {[%clk 0:00:13.6]}
49... Rh2 {[%clk 0:00:10.1]} 50. Rb7+ {[%clk 0:00:12.7]} 50... Kh6 {[%clk
0:00:09.2]} 51. Rb8 {[%clk 0:00:12.9]} 51... Rxh3 {[%clk 0:00:09.4]} 52. Ke2
{[%clk 0:00:13.2]} 52... Rg3 {[%clk 0:00:07.9]} 53. Kf2 {[%clk 0:00:13.3]} 53...
Rh3 {[%clk 0:00:07.3]} 54. Re8 {[%clk 0:00:11]} 54... Kg7 {[%clk 0:00:07.5]} 55.
Kg2 {[%clk 0:00:10.6]} 55... Rg3+ {[%clk 0:00:07.1]} 56. Kf2 {[%clk 0:00:11]}
56... Rg4 {[%clk 0:00:06.6]} 57. Re7+ {[%clk 0:00:09.5]} 57... Kh6 {[%clk
0:00:06.7]} 58. Re8 {[%clk 0:00:09.6]} 58... g5 {[%clk 0:00:07]} 59. fxg5+
{[%clk 0:00:09.1]} 59... Kxg5 {[%clk 0:00:06.9]} 60. Rg8+ {[%clk 0:00:09.2]}
60... Kf6 {[%clk 0:00:07.4]} 61. Rf8+ {[%clk 0:00:09.2]} 61... Ke5 {[%clk
0:00:07.4]} 62. Re8+ {[%clk 0:00:09.5]} 62... Kd5 {[%clk 0:00:07.7]} 63. Rd8+
{[%clk 0:00:09.4]} 63... Ke4 {[%clk 0:00:07.4]} 64. Re8+ {[%clk 0:00:09.6]}
64... Kd5 {[%clk 0:00:06.5]} 65. Rd8+ {[%clk 0:00:09.9]} 65... Ke6 {[%clk
0:00:06.8]} 66. Re8+ {[%clk 0:00:09.4]} 66... Kf7 {[%clk 0:00:07.3]} 67. Rh8
{[%clk 0:00:09.5]} 67... Kg7 {[%clk 0:00:06.6]} 68. Re8 {[%clk 0:00:09.7]} 68...
Ra4 {[%clk 0:00:06.7]} 69. Re5 {[%clk 0:00:08.5]} 69... Kg6 {[%clk 0:00:06.9]}
70. Re6+ {[%clk 0:00:08.4]} 70... Kg5 {[%clk 0:00:07.3]} 71. Kf3 {[%clk
0:00:08.3]} 71... Ra1 {[%clk 0:00:07.2]} 72. Re8 {[%clk 0:00:08.2]} 72... Rf1+
{[%clk 0:00:07.4]} 73. Kg2 {[%clk 0:00:08.4]} 73... Re1 {[%clk 0:00:07.4]} 74.
Kf2 {[%clk 0:00:08.7]} 74... Ra1 {[%clk 0:00:07.5]} 75. Rg8+ {[%clk 0:00:09]}
75... Kh5 {[%clk 0:00:07.9]} 76. Rh8+ {[%clk 0:00:09.4]} 76... Kg4 {[%clk
0:00:08.3]} 77. Rg8+ {[%clk 0:00:08.7]} 77... Kh3 {[%clk 0:00:08.5]} 78. Rf8
{[%clk 0:00:09.2]} 78... Ra2+ {[%clk 0:00:07.7]} 79. Kf3 {[%clk 0:00:08.6]}
79... Ra1 {[%clk 0:00:08.1]} 80. Kf2 {[%clk 0:00:06.7]} 80... Ra5 {[%clk
0:00:08.3]} 81. Rg8 {[%clk 0:00:05.2]} 81... Kh2 {[%clk 0:00:08.1]} 82. Rg2+
{[%clk 0:00:04]} 82... Kh3 {[%clk 0:00:06.3]} 83. Rg8 {[%clk 0:00:03.9]} 83...
Ra2+ {[%clk 0:00:05.1]} 84. Kf3 {[%clk 0:00:03.2]} 84... Ra1 {[%clk 0:00:05.5]}
85. Rg5 {[%clk 0:00:02]} 85... Rf1+ {[%clk 0:00:04.8]} 86. Ke2 {[%clk
0:00:02.4]} 86... Rh1 {[%clk 0:00:03.8]} 87. Kf2 {[%clk 0:00:01.8]} 87... Kh2
{[%clk 0:00:03.9]} 88. Rh5 {[%clk 0:00:01.2]} 88... h3 {[%clk 0:00:03.8]} 0-1